[Event "Titled Tuesday Blitz July 25 Late 2023"]
[White "Bortnyk, Olexandr"]
[Black "Nguyen, Ngoc Truong Son"]
[WhiteFideId "14120828"]
[BlackFideId "12401110"]
[WhiteElo "3013"]
[BlackElo "2871"]
[Result "1-0"]
[Round "5"]
[TimeControl "180+2"]
[Date "2023.07.25"]
[WhiteClock "0:00:26"]
[BlackClock "0:00:00"]
[Board "13"]

1. e4 {[%clk 0:02:57]}  e5 {[%clk 0:02:59]} 2. Bc4 {[%clk 0:02:56]}  Nf6 {[%clk 0:02:58]} 3. d3 {[%clk 0:02:57]}  c6 {[%clk 0:02:58]} 4. Nf3 {[%clk 0:02:57]}  d5 {[%clk 0:02:56]} 5. Bb3 {[%clk 0:02:58]}  Bb4+ {[%clk 0:02:56]} 6. Bd2 {[%clk 0:02:58]}  Bd6 {[%clk 0:02:42]} 7. Nc3 {[%clk 0:02:58]}  d4 {[%clk 0:02:25]} 8. Ne2 {[%clk 0:02:58]}  h6 {[%clk 0:02:22]} 9. O-O {[%clk 0:02:56]}  c5 {[%clk 0:02:21]} 10. h3 {[%clk 0:02:55]}  Nc6 {[%clk 0:02:21]} 11. c3 {[%clk 0:02:52]}  O-O {[%clk 0:02:08]} 12. cxd4 {[%clk 0:02:51]}  cxd4 {[%clk 0:01:54]} 13. Rc1 {[%clk 0:02:52]}  Qe7 {[%clk 0:01:45]} 14. Ng3 {[%clk 0:02:52]}  Be6 {[%clk 0:01:44]} 15. Nh4 {[%clk 0:02:52]}  Rfd8 {[%clk 0:01:33]} 16. Ngf5 {[%clk 0:02:52]}  Qe8 {[%clk 0:01:29]} 17. Qf3 {[%clk 0:02:51]}  Bxb3 {[%clk 0:01:11]} 18. Bxh6 {[%clk 0:02:40]}  Bf8 {[%clk 0:00:52]} 19. Bxg7 {[%clk 0:02:16]}  Bxg7 {[%clk 0:00:53]} 20. axb3 {[%clk 0:02:14]}  Qf8 {[%clk 0:00:31]} 21. Qg3 {[%clk 0:02:10]}  Kh7 {[%clk 0:00:26]} 22. Qg5 {[%clk 0:02:05]}  Ng8 {[%clk 0:00:20]} 23. f4 {[%clk 0:02:03]}  Bh6 {[%clk 0:00:19]} 24. Qh5 {[%clk 0:01:38]}  Nf6 {[%clk 0:00:19]} 25. Qxh6+ {[%clk 0:01:36]}  Qxh6 {[%clk 0:00:19]} 26. Nxh6 {[%clk 0:01:37]}  Kxh6 {[%clk 0:00:20]} 27. fxe5 {[%clk 0:01:38]}  Nd7 {[%clk 0:00:20]} 28. Rxf7 {[%clk 0:01:37]}  Ncxe5 {[%clk 0:00:10]} 29. Re7 {[%clk 0:01:32]}  Rf8 {[%clk 0:00:09]} 30. Rc7 {[%clk 0:01:28]}  Rad8 {[%clk 0:00:06]} 31. Nf5+ {[%clk 0:01:24]}  Kg5 {[%clk 0:00:05]} 32. Nxd4 {[%clk 0:01:23]}  Rc8 {[%clk 0:00:02]} 33. Rexd7 {[%clk 0:01:08]}  Nxd7 {[%clk 0:00:02]} 34. Rxd7 {[%clk 0:01:09]}  Kf6 {[%clk 0:00:02]} 35. Rxb7 {[%clk 0:01:09]}  Rfd8 {[%clk 0:00:02]} 36. Nf3 {[%clk 0:00:57]}  Rxd3 {[%clk 0:00:03]} 37. e5+ {[%clk 0:00:58]}  Kf5 {[%clk 0:00:03]} 38. Rxa7 {[%clk 0:00:56]}  Rc2 {[%clk 0:00:03]} 39. Rf7+ {[%clk 0:00:51]}  Ke6 {[%clk 0:00:03]} 40. Rf6+ {[%clk 0:00:50]}  Ke7 {[%clk 0:00:03]} 41. h4 {[%clk 0:00:49]}  Rxb3 {[%clk 0:00:03]} 42. h5 {[%clk 0:00:47]}  Rbxb2 {[%clk 0:00:03]} 43. Rg6 {[%clk 0:00:47]}  Rc1+ {[%clk 0:00:02]} 44. Kh2 {[%clk 0:00:48]}  Rc3 {[%clk 0:00:02]} 45. Kg3 {[%clk 0:00:42]}  Rcc2 {[%clk 0:00:03]} 46. Kh3 {[%clk 0:00:42]}  Rc1 {[%clk 0:00:02]} 47. g4 {[%clk 0:00:27]}  Rh1+ {[%clk 0:00:02]} 48. Kg3 {[%clk 0:00:27]}  Rb3 {[%clk 0:00:02]} 49. Rf6 {[%clk 0:00:24]}  Rg1+ {[%clk 0:00:02]} 50. Kh4 {[%clk 0:00:24]}  Rf1 {[%clk 0:00:02]} 51. Nd4 {[%clk 0:00:24]}  Rh1+ {[%clk 0:00:02]} 52. Kg5 {[%clk 0:00:25]}  Rd3 {[%clk 0:00:02]} 53. Nf5+ {[%clk 0:00:26]}  Ke8 {[%clk 0:00:02]} 54. h6 {[%clk 0:00:26]}  Rd7 {[%clk 0:00:00]} 55. e6 {[%clk 0:00:26]} 1-0


[Site "https://www.chess.com"]

[Event "Titled Tuesday Blitz July 25 Late 2023"]
[White "Leitao, Rafael"]
[Black "Kramnik, Vladimir"]
[WhiteFideId "2101246"]
[BlackFideId "4101588"]
[WhiteElo "2802"]
[BlackElo "3000"]
[Result "0-1"]
[Round "5"]
[TimeControl "180+2"]
[Date "2023.07.25"]
[WhiteClock "0:00:03"]
[BlackClock "0:00:24"]
[Board "14"]

1. c4 {[%clk 0:03:00]}  c5 {[%clk 0:02:58]} 2. g3 {[%clk 0:02:59]}  g6 {[%clk 0:02:58]} 3. Bg2 {[%clk 0:02:58]}  Bg7 {[%clk 0:02:58]} 4. Nc3 {[%clk 0:02:58]}  Nc6 {[%clk 0:02:58]} 5. Nf3 {[%clk 0:02:58]}  d6 {[%clk 0:02:57]} 6. d3 {[%clk 0:02:51]}  e5 {[%clk 0:02:54]} 7. a3 {[%clk 0:02:47]}  Nge7 {[%clk 0:02:54]} 8. Rb1 {[%clk 0:02:44]}  a5 {[%clk 0:02:54]} 9. Nd2 {[%clk 0:02:42]}  O-O {[%clk 0:02:52]} 10. Nf1 {[%clk 0:02:41]}  f5 {[%clk 0:02:48]} 11. Ne3 {[%clk 0:02:38]}  Kh8 {[%clk 0:02:43]} 12. Ned5 {[%clk 0:02:34]}  Nxd5 {[%clk 0:02:42]} 13. Nxd5 {[%clk 0:02:33]}  Be6 {[%clk 0:02:26]} 14. O-O {[%clk 0:02:27]}  Rb8 {[%clk 0:02:26]} 15. Bd2 {[%clk 0:02:09]}  b5 {[%clk 0:01:44]} 16. cxb5 {[%clk 0:01:39]}  Rxb5 {[%clk 0:01:44]} 17. Qa4 {[%clk 0:01:34]}  Qb8 {[%clk 0:01:27]} 18. Nc7 {[%clk 0:01:15]}  Qxc7 {[%clk 0:01:26]} 19. Qxb5 {[%clk 0:01:15]}  Nd4 {[%clk 0:01:27]} 20. Qxa5 {[%clk 0:01:10]}  Nxe2+ {[%clk 0:01:22]} 21. Kh1 {[%clk 0:01:09]}  Qd7 {[%clk 0:01:17]} 22. b4 {[%clk 0:00:53]}  f4 {[%clk 0:01:14]} 23. gxf4 {[%clk 0:00:29]}  Bh3 {[%clk 0:00:57]} 24. f3 {[%clk 0:00:26]}  Bh6 {[%clk 0:00:47]} 25. bxc5 {[%clk 0:00:25]}  Bxf4 {[%clk 0:00:38]} 26. cxd6 {[%clk 0:00:20]}  Bxg2+ {[%clk 0:00:33]} 27. Kxg2 {[%clk 0:00:20]}  Qxd6 {[%clk 0:00:31]} 28. Bb4 {[%clk 0:00:19]}  Qf6 {[%clk 0:00:28]} 29. Bxf8 {[%clk 0:00:16]}  Qg5+ {[%clk 0:00:27]} 30. Kh1 {[%clk 0:00:03]}  Qh4 {[%clk 0:00:24]} 0-1


[Site "https://www.chess.com"]

[Event "Titled Tuesday Blitz July 25 Late 2023"]
[White "Yanchenko, Roman"]
[Black "Firouzja, Alireza"]
[WhiteFideId "4137329"]
[BlackFideId "12573981"]
[WhiteElo "2734"]
[BlackElo "3101"]
[Result "1/2-1/2"]
[Round "5"]
[TimeControl "180+2"]
[Date "2023.07.25"]
[WhiteClock "0:00:36"]
[BlackClock "0:00:05"]
[Board "16"]

1. d4 {[%clk 0:03:00]}  Nf6 {[%clk 0:02:59]} 2. c4 {[%clk 0:03:01]}  g6 {[%clk 0:03:00]} 3. Nf3 {[%clk 0:03:00]}  Bg7 {[%clk 0:03:01]} 4. Nc3 {[%clk 0:03:01]}  O-O {[%clk 0:03:02]} 5. Bf4 {[%clk 0:03:01]}  d6 {[%clk 0:03:02]} 6. e3 {[%clk 0:03:01]}  Nbd7 {[%clk 0:02:58]} 7. Be2 {[%clk 0:03:01]}  Nh5 {[%clk 0:02:49]} 8. Bg3 {[%clk 0:03:01]}  Nxg3 {[%clk 0:02:43]} 9. hxg3 {[%clk 0:03:02]}  e5 {[%clk 0:02:44]} 10. dxe5 {[%clk 0:03:02]}  dxe5 {[%clk 0:02:45]} 11. Qc2 {[%clk 0:03:01]}  c6 {[%clk 0:02:38]} 12. Rd1 {[%clk 0:03:00]}  Qe7 {[%clk 0:02:38]} 13. Ne4 {[%clk 0:02:51]}  Nc5 {[%clk 0:02:31]} 14. Nd6 {[%clk 0:02:41]}  e4 {[%clk 0:02:27]} 15. Nxc8 {[%clk 0:02:41]}  Raxc8 {[%clk 0:02:28]} 16. Nd4 {[%clk 0:02:41]}  Rcd8 {[%clk 0:02:21]} 17. O-O {[%clk 0:02:40]}  Rfe8 {[%clk 0:02:13]} 18. Nb3 {[%clk 0:02:17]}  Na4 {[%clk 0:02:06]} 19. Nd4 {[%clk 0:02:17]}  Nxb2 {[%clk 0:02:03]} 20. Qxb2 {[%clk 0:01:35]}  c5 {[%clk 0:02:03]} 21. Nc6 {[%clk 0:01:32]}  bxc6 {[%clk 0:01:58]} 22. Qc2 {[%clk 0:01:31]}  h5 {[%clk 0:01:57]} 23. Rxd8 {[%clk 0:01:30]}  Rxd8 {[%clk 0:01:57]} 24. Rd1 {[%clk 0:01:31]}  Rb8 {[%clk 0:01:58]} 25. Rb1 {[%clk 0:01:31]}  Rb6 {[%clk 0:01:56]} 26. Rxb6 {[%clk 0:01:27]}  axb6 {[%clk 0:01:57]} 27. Qd2 {[%clk 0:01:27]}  Be5 {[%clk 0:01:52]} 28. a4 {[%clk 0:01:20]}  Bc7 {[%clk 0:01:12]} 29. Bd1 {[%clk 0:00:54]}  Qe6 {[%clk 0:01:00]} 30. Qe2 {[%clk 0:00:45]}  Qd6 {[%clk 0:00:55]} 31. Kf1 {[%clk 0:00:37]}  Qe5 {[%clk 0:00:45]} 32. Qd2 {[%clk 0:00:33]}  Qa1 {[%clk 0:00:45]} 33. Qd7 {[%clk 0:00:24]}  Be5 {[%clk 0:00:39]} 34. Qd2 {[%clk 0:00:19]}  Bc3 {[%clk 0:00:34]} 35. Qc2 {[%clk 0:00:19]}  Bb4 {[%clk 0:00:31]} 36. g4 {[%clk 0:00:19]}  hxg4 {[%clk 0:00:30]} 37. g3 {[%clk 0:00:20]}  f5 {[%clk 0:00:28]} 38. Kg2 {[%clk 0:00:20]}  Kf7 {[%clk 0:00:19]} 39. Be2 {[%clk 0:00:21]}  Ke7 {[%clk 0:00:19]} 40. Qd1 {[%clk 0:00:19]}  Qb2 {[%clk 0:00:19]} 41. Kf1 {[%clk 0:00:18]}  Bc3 {[%clk 0:00:18]} 42. Kg2 {[%clk 0:00:18]}  Be5 {[%clk 0:00:18]} 43. Kf1 {[%clk 0:00:18]}  Bd6 {[%clk 0:00:17]} 44. Kg2 {[%clk 0:00:19]}  Qh8 {[%clk 0:00:17]} 45. Qh1 {[%clk 0:00:17]}  Qxh1+ {[%clk 0:00:11]} 46. Kxh1 {[%clk 0:00:18]}  Kd7 {[%clk 0:00:12]} 47. Kg2 {[%clk 0:00:19]}  Kc7 {[%clk 0:00:13]} 48. a5 {[%clk 0:00:17]}  bxa5 {[%clk 0:00:07]} 49. Bd1 {[%clk 0:00:17]}  g5 {[%clk 0:00:06]} 50. Ba4 {[%clk 0:00:15]}  Be5 {[%clk 0:00:06]} 51. Kf1 {[%clk 0:00:15]}  Kd6 {[%clk 0:00:07]} 52. Kg2 {[%clk 0:00:15]}  f4 {[%clk 0:00:06]} 53. Kh2 {[%clk 0:00:14]}  f3 {[%clk 0:00:01]} 54. Kg1 {[%clk 0:00:14]}  Bc3 {[%clk 0:00:02]} 55. Kf1 {[%clk 0:00:14]}  Bd2 {[%clk 0:00:03]} 56. Kg1 {[%clk 0:00:14]}  Ke5 {[%clk 0:00:03]} 57. Kf1 {[%clk 0:00:14]}  Bc3 {[%clk 0:00:04]} 58. Kg1 {[%clk 0:00:15]}  Bd4 {[%clk 0:00:04]} 59. Kf1 {[%clk 0:00:15]}  Kd6 {[%clk 0:00:05]} 60. Kg1 {[%clk 0:00:16]}  Be5 {[%clk 0:00:06]} 61. Kf1 {[%clk 0:00:16]}  Kd7 {[%clk 0:00:07]} 62. Kg1 {[%clk 0:00:17]}  Kc7 {[%clk 0:00:07]} 63. Kf1 {[%clk 0:00:17]}  Kb7 {[%clk 0:00:08]} 64. Kg1 {[%clk 0:00:18]}  Bd6 {[%clk 0:00:09]} 65. Kf1 {[%clk 0:00:18]}  Bc7 {[%clk 0:00:10]} 66. Kg1 {[%clk 0:00:19]}  Bb6 {[%clk 0:00:11]} 67. Kf1 {[%clk 0:00:19]}  Kc7 {[%clk 0:00:12]} 68. Kg1 {[%clk 0:00:20]}  Kd6 {[%clk 0:00:13]} 69. Kf1 {[%clk 0:00:20]}  Ke5 {[%clk 0:00:13]} 70. Kg1 {[%clk 0:00:21]}  Bc7 {[%clk 0:00:14]} 71. Kf1 {[%clk 0:00:21]}  Ke6 {[%clk 0:00:15]} 72. Bxc6 {[%clk 0:00:21]}  a4 {[%clk 0:00:07]} 73. Bxa4 {[%clk 0:00:21]}  Kd6 {[%clk 0:00:07]} 74. Be8 {[%clk 0:00:20]}  Ba5 {[%clk 0:00:05]} 75. Bh5 {[%clk 0:00:20]}  Bc3 {[%clk 0:00:05]} 76. Bxg4 {[%clk 0:00:20]}  Ke5 {[%clk 0:00:05]} 77. Bh5 {[%clk 0:00:21]}  Bb4 {[%clk 0:00:06]} 78. Be8 {[%clk 0:00:21]}  Ba5 {[%clk 0:00:07]} 79. Bc6 {[%clk 0:00:21]}  Bc7 {[%clk 0:00:08]} 80. Bd5 {[%clk 0:00:22]}  Bd8 {[%clk 0:00:08]} 81. Kg1 {[%clk 0:00:22]}  Be7 {[%clk 0:00:08]} 82. Kh2 {[%clk 0:00:22]}  Bd8 {[%clk 0:00:06]} 83. Bc6 {[%clk 0:00:22]}  Bc7 {[%clk 0:00:06]} 84. Bb7 {[%clk 0:00:22]}  Bb6 {[%clk 0:00:07]} 85. Kh3 {[%clk 0:00:23]}  Bc7 {[%clk 0:00:06]} 86. Kh2 {[%clk 0:00:22]}  Bd8 {[%clk 0:00:07]} 87. Kg1 {[%clk 0:00:22]}  Bc7 {[%clk 0:00:06]} 88. Bc6 {[%clk 0:00:23]}  Ba5 {[%clk 0:00:07]} 89. Bb7 {[%clk 0:00:23]}  Bc3 {[%clk 0:00:07]} 90. Bc6 {[%clk 0:00:23]}  Kf5 {[%clk 0:00:07]} 91. Bd7+ {[%clk 0:00:24]}  Ke5 {[%clk 0:00:06]} 92. Bc6 {[%clk 0:00:24]}  Kf5 {[%clk 0:00:06]} 93. Bb7 {[%clk 0:00:25]}  Bb4 {[%clk 0:00:05]} 94. Bc6 {[%clk 0:00:25]}  g4 {[%clk 0:00:04]} 95. Bb7 {[%clk 0:00:26]}  Bc3 {[%clk 0:00:04]} 96. Kf1 {[%clk 0:00:26]}  Be5 {[%clk 0:00:04]} 97. Bc8+ {[%clk 0:00:26]}  Kg5 {[%clk 0:00:05]} 98. Bd7 {[%clk 0:00:27]}  Bd6 {[%clk 0:00:04]} 99. Be6 {[%clk 0:00:27]}  Bc7 {[%clk 0:00:04]} 100. Bg8 {[%clk 0:00:28]}  Kf5 {[%clk 0:00:03]} 101. Bd5 {[%clk 0:00:28]}  Ba5 {[%clk 0:00:03]} 102. Bb7 {[%clk 0:00:29]}  Bd2 {[%clk 0:00:03]} 103. Bc8+ {[%clk 0:00:29]}  Kg5 {[%clk 0:00:03]} 104. Bd7 {[%clk 0:00:30]}  Bc3 {[%clk 0:00:04]} 105. Bc6 {[%clk 0:00:30]}  Kf5 {[%clk 0:00:04]} 106. Kg1 {[%clk 0:00:30]}  Be5 {[%clk 0:00:03]} 107. Bd7+ {[%clk 0:00:31]}  Kg5 {[%clk 0:00:04]} 108. Be6 {[%clk 0:00:31]}  Bd6 {[%clk 0:00:04]} 109. Kf1 {[%clk 0:00:31]}  Be5 {[%clk 0:00:04]} 110. Ke1 {[%clk 0:00:31]}  Bc3+ {[%clk 0:00:04]} 111. Kf1 {[%clk 0:00:32]}  Bb4 {[%clk 0:00:04]} 112. Bd7 {[%clk 0:00:32]}  Ba5 {[%clk 0:00:05]} 113. Bc8 {[%clk 0:00:32]}  Bb4 {[%clk 0:00:04]} 114. Be6 {[%clk 0:00:33]}  Ba5 {[%clk 0:00:05]} 115. Bg8 {[%clk 0:00:33]}  Kf5 {[%clk 0:00:04]} 116. Bd5 {[%clk 0:00:33]}  Bb4 {[%clk 0:00:04]} 117. Bc6 {[%clk 0:00:34]}  Ba5 {[%clk 0:00:05]} 118. Bb7 {[%clk 0:00:35]}  Bb4 {[%clk 0:00:04]} 119. Bc8+ {[%clk 0:00:35]}  Kg5 {[%clk 0:00:05]} 120. Bb7 {[%clk 0:00:36]}  Kf5 {[%clk 0:00:05]} 121. Bc8+ {[%clk 0:00:36]}  Kg5 {[%clk 0:00:05]} 1/2-1/2


[Site "https://www.chess.com"]

[Event "Titled Tuesday Blitz July 25 Late 2023"]
[White "Boyer, Mahel"]
[Black "Nihal Sarin"]
[WhiteFideId "45102422"]
[BlackFideId "25092340"]
[WhiteElo "2685"]
[BlackElo "3073"]
[Result "0-1"]
[Round "5"]
[TimeControl "180+2"]
[Date "2023.07.25"]
[WhiteClock "0:00:00"]
[BlackClock "0:00:53"]
[Board "17"]

1. e4 {[%clk 0:02:49]}  Nf6 {[%clk 0:02:59]} 2. e5 {[%clk 0:02:48]}  Nd5 {[%clk 0:03:00]} 3. d4 {[%clk 0:02:33]}  d6 {[%clk 0:03:00]} 4. Nf3 {[%clk 0:02:31]}  c6 {[%clk 0:02:58]} 5. exd6 {[%clk 0:02:21]}  exd6 {[%clk 0:02:56]} 6. c4 {[%clk 0:02:19]}  Nf6 {[%clk 0:02:55]} 7. Bd3 {[%clk 0:02:18]}  d5 {[%clk 0:02:56]} 8. O-O {[%clk 0:02:17]}  Be7 {[%clk 0:02:56]} 9. Nc3 {[%clk 0:02:17]}  O-O {[%clk 0:02:57]} 10. h3 {[%clk 0:02:16]}  h6 {[%clk 0:02:57]} 11. Bf4 {[%clk 0:02:15]}  Be6 {[%clk 0:02:52]} 12. c5 {[%clk 0:02:15]}  Re8 {[%clk 0:02:51]} 13. b4 {[%clk 0:02:12]}  Nbd7 {[%clk 0:02:50]} 14. Re1 {[%clk 0:02:09]}  Nf8 {[%clk 0:02:50]} 15. a4 {[%clk 0:02:06]}  Qc8 {[%clk 0:02:50]} 16. Ne5 {[%clk 0:02:02]}  Bf5 {[%clk 0:02:49]} 17. b5 {[%clk 0:01:58]}  Bxd3 {[%clk 0:02:49]} 18. Qxd3 {[%clk 0:01:59]}  Bd8 {[%clk 0:02:50]} 19. Bg3 {[%clk 0:01:50]}  Ba5 {[%clk 0:02:48]} 20. Re3 {[%clk 0:01:36]}  Bxc3 {[%clk 0:02:41]} 21. Qxc3 {[%clk 0:01:36]}  Ne4 {[%clk 0:02:42]} 22. Qd3 {[%clk 0:01:31]}  f6 {[%clk 0:02:36]} 23. Ng4 {[%clk 0:01:10]}  Qd7 {[%clk 0:02:15]} 24. Rae1 {[%clk 0:00:44]}  Re6 {[%clk 0:02:13]} 25. Bf4 {[%clk 0:00:13]}  Rae8 {[%clk 0:02:04]} 26. Nh2 {[%clk 0:00:10]}  Ng6 {[%clk 0:02:03]} 27. Bg3 {[%clk 0:00:10]}  f5 {[%clk 0:02:01]} 28. Be5 {[%clk 0:00:07]}  Nxe5 {[%clk 0:01:49]} 29. dxe5 {[%clk 0:00:08]}  Rxe5 {[%clk 0:01:50]} 30. Qd4 {[%clk 0:00:08]}  R5e6 {[%clk 0:01:37]} 31. Nf3 {[%clk 0:00:08]}  Qe7 {[%clk 0:01:28]} 32. bxc6 {[%clk 0:00:05]}  bxc6 {[%clk 0:01:29]} 33. Nd2 {[%clk 0:00:01]}  Qxc5 {[%clk 0:01:28]} 34. Nb3 {[%clk 0:00:02]}  Qe7 {[%clk 0:01:24]} 35. f3 {[%clk 0:00:02]}  Ng5 {[%clk 0:01:20]} 36. Rxe6 {[%clk 0:00:03]}  Nxe6 {[%clk 0:01:21]} 37. Qe5 {[%clk 0:00:03]}  Qf7 {[%clk 0:01:19]} 38. Nc5 {[%clk 0:00:03]}  Nc7 {[%clk 0:01:19]} 39. Qa1 {[%clk 0:00:04]}  Re7 {[%clk 0:01:12]} 40. Rxe7 {[%clk 0:00:02]}  Qxe7 {[%clk 0:01:13]} 41. Qd4 {[%clk 0:00:02]}  Kh7 {[%clk 0:01:05]} 42. Nd3 {[%clk 0:00:03]}  Ne8 {[%clk 0:01:03]} 43. Ne5 {[%clk 0:00:03]}  Qd6 {[%clk 0:00:59]} 44. Nd3 {[%clk 0:00:03]}  Qe7 {[%clk 0:00:59]} 45. Ne5 {[%clk 0:00:03]}  Qa3 {[%clk 0:00:52]} 46. Nxc6 {[%clk 0:00:03]}  Qc1+ {[%clk 0:00:52]} 47. Kh2 {[%clk 0:00:04]}  Qxc6 {[%clk 0:00:52]} 48. Qxa7 {[%clk 0:00:05]}  Qd6+ {[%clk 0:00:52]} 49. Kg1 {[%clk 0:00:04]}  d4 {[%clk 0:00:52]} 50. Qf7 {[%clk 0:00:05]}  Nf6 {[%clk 0:00:52]} 51. h4 {[%clk 0:00:05]}  d3 {[%clk 0:00:53]} 52. Qe6 {[%clk 0:00:00]}  Qxe6 {[%clk 0:00:53]} 0-1


[Site "https://www.chess.com"]

[Event "Titled Tuesday Blitz July 25 Late 2023"]
[White "Sarana, Alexey"]
[Black "Fisher_TheGalactic"]
[WhiteFideId "24133795"]
[WhiteElo "3035"]
[BlackElo "2686"]
[Result "1-0"]
[Round "5"]
[TimeControl "180+2"]
[Date "2023.07.25"]
[WhiteClock "0:01:45"]
[BlackClock "0:00:28"]
[Board "18"]

1. Nf3 {[%clk 0:02:46]}  d5 {[%clk 0:02:59]} 2. c4 {[%clk 0:02:46]}  e6 {[%clk 0:02:59]} 3. d4 {[%clk 0:02:45]}  Nf6 {[%clk 0:02:59]} 4. Nc3 {[%clk 0:02:43]}  c6 {[%clk 0:02:56]} 5. Bg5 {[%clk 0:02:41]}  Be7 {[%clk 0:02:56]} 6. e3 {[%clk 0:02:41]}  O-O {[%clk 0:02:54]} 7. Qc2 {[%clk 0:02:41]}  h6 {[%clk 0:02:54]} 8. Bf4 {[%clk 0:02:40]}  Nbd7 {[%clk 0:02:53]} 9. h3 {[%clk 0:02:39]}  b6 {[%clk 0:02:50]} 10. cxd5 {[%clk 0:02:34]}  exd5 {[%clk 0:02:45]} 11. Bd3 {[%clk 0:02:33]}  Bb7 {[%clk 0:02:44]} 12. O-O {[%clk 0:02:33]}  Re8 {[%clk 0:02:44]} 13. Bf5 {[%clk 0:02:31]}  Nf8 {[%clk 0:02:37]} 14. Rfd1 {[%clk 0:02:31]}  Bd6 {[%clk 0:02:37]} 15. Be5 {[%clk 0:02:28]}  Bc8 {[%clk 0:02:24]} 16. Rac1 {[%clk 0:02:25]}  Bxf5 {[%clk 0:02:23]} 17. Qxf5 {[%clk 0:02:26]}  Rc8 {[%clk 0:02:16]} 18. Bxf6 {[%clk 0:02:25]}  Qxf6 {[%clk 0:02:15]} 19. Qxf6 {[%clk 0:02:25]}  gxf6 {[%clk 0:02:16]} 20. Rc2 {[%clk 0:02:25]}  Rc7 {[%clk 0:01:47]} 21. Nh4 {[%clk 0:02:22]}  Rec8 {[%clk 0:01:47]} 22. Nf5 {[%clk 0:02:22]}  Bb4 {[%clk 0:01:35]} 23. Nxh6+ {[%clk 0:02:20]}  Kh7 {[%clk 0:01:35]} 24. Nf5 {[%clk 0:02:21]}  Ne6 {[%clk 0:01:35]} 25. Rdc1 {[%clk 0:02:20]}  Kg6 {[%clk 0:01:32]} 26. g4 {[%clk 0:02:20]}  Bxc3 {[%clk 0:01:26]} 27. Rxc3 {[%clk 0:02:20]}  c5 {[%clk 0:01:27]} 28. dxc5 {[%clk 0:02:15]}  bxc5 {[%clk 0:01:26]} 29. Kg2 {[%clk 0:02:12]}  Rb8 {[%clk 0:01:23]} 30. b3 {[%clk 0:02:12]}  Rb4 {[%clk 0:01:22]} 31. Kg3 {[%clk 0:02:12]}  Ng5 {[%clk 0:01:21]} 32. f3 {[%clk 0:02:12]}  Ne6 {[%clk 0:01:21]} 33. h4 {[%clk 0:02:10]}  c4 {[%clk 0:01:13]} 34. bxc4 {[%clk 0:01:55]}  Rbxc4 {[%clk 0:01:09]} 35. Rxc4 {[%clk 0:01:55]}  dxc4 {[%clk 0:01:09]} 36. Rc3 {[%clk 0:01:55]}  Rb7 {[%clk 0:00:47]} 37. Rxc4 {[%clk 0:01:54]}  Rb5 {[%clk 0:00:44]} 38. Rc8 {[%clk 0:01:52]}  Ra5 {[%clk 0:00:44]} 39. Rh8 {[%clk 0:01:52]}  Rxf5 {[%clk 0:00:38]} 40. gxf5+ {[%clk 0:01:53]}  Kxf5 {[%clk 0:00:39]} 41. Rh5+ {[%clk 0:01:53]}  Kg6 {[%clk 0:00:39]} 42. Ra5 {[%clk 0:01:54]}  Ng7 {[%clk 0:00:39]} 43. e4 {[%clk 0:01:52]}  Nh5+ {[%clk 0:00:38]} 44. Kg4 {[%clk 0:01:51]}  Ng7 {[%clk 0:00:38]} 45. f4 {[%clk 0:01:52]}  Kh6 {[%clk 0:00:36]} 46. Rxa7 {[%clk 0:01:51]}  Kg6 {[%clk 0:00:35]} 47. f5+ {[%clk 0:01:51]}  Kh6 {[%clk 0:00:34]} 48. Rxf7 {[%clk 0:01:52]}  Nh5 {[%clk 0:00:33]} 49. a4 {[%clk 0:01:49]}  Ng7 {[%clk 0:00:31]} 50. a5 {[%clk 0:01:46]}  Kh7 {[%clk 0:00:28]} 51. a6 {[%clk 0:01:45]} 1-0


[Site "https://www.chess.com"]

[Event "Titled Tuesday Blitz July 25 Late 2023"]
[White "Omelja, Artem"]
[Black "Svane, Rasmus"]
[WhiteFideId "14119846"]
[BlackFideId "4657101"]
[WhiteElo "2628"]
[BlackElo "2964"]
[Result "0-1"]
[Round "5"]
[TimeControl "180+2"]
[Date "2023.07.25"]
[WhiteClock "0:00:00"]
[BlackClock "0:01:19"]
[Board "27"]

1. d4 {[%clk 0:03:00]}  d5 {[%clk 0:02:59]} 2. c4 {[%clk 0:03:00]}  e6 {[%clk 0:02:59]} 3. Nc3 {[%clk 0:03:00]}  a6 {[%clk 0:02:59]} 4. cxd5 {[%clk 0:02:31]}  exd5 {[%clk 0:03:00]} 5. Nf3 {[%clk 0:02:19]}  Nf6 {[%clk 0:03:00]} 6. Bg5 {[%clk 0:02:12]}  Be6 {[%clk 0:02:59]} 7. e3 {[%clk 0:02:11]}  Nbd7 {[%clk 0:03:00]} 8. Bd3 {[%clk 0:02:08]}  c6 {[%clk 0:02:59]} 9. O-O {[%clk 0:02:05]}  Bd6 {[%clk 0:02:59]} 10. Qd2 {[%clk 0:02:05]}  Qc7 {[%clk 0:02:57]} 11. Rac1 {[%clk 0:01:45]}  Bg4 {[%clk 0:02:53]} 12. h3 {[%clk 0:01:39]}  Bxf3 {[%clk 0:02:53]} 13. gxf3 {[%clk 0:01:40]}  h6 {[%clk 0:02:53]} 14. Bxf6 {[%clk 0:01:39]}  Nxf6 {[%clk 0:02:54]} 15. Kg2 {[%clk 0:01:34]}  O-O {[%clk 0:02:54]} 16. f4 {[%clk 0:01:33]}  Kh8 {[%clk 0:02:54]} 17. Bb1 {[%clk 0:01:24]}  Rg8 {[%clk 0:02:54]} 18. Kh1 {[%clk 0:01:23]}  g5 {[%clk 0:02:47]} 19. fxg5 {[%clk 0:01:17]}  Rxg5 {[%clk 0:02:48]} 20. Qe2 {[%clk 0:01:17]}  Rag8 {[%clk 0:02:27]} 21. Qf3 {[%clk 0:01:15]}  Qe7 {[%clk 0:02:26]} 22. Rg1 {[%clk 0:01:12]}  Bb4 {[%clk 0:01:59]} 23. Ne2 {[%clk 0:00:58]}  Ne4 {[%clk 0:01:58]} 24. Rxg5 {[%clk 0:00:38]}  Rxg5 {[%clk 0:01:51]} 25. Nf4 {[%clk 0:00:23]}  Nd2 {[%clk 0:01:46]} 26. Qd1 {[%clk 0:00:16]}  Nxb1 {[%clk 0:01:45]} 27. Rxb1 {[%clk 0:00:16]}  Qe4+ {[%clk 0:01:46]} 28. Kh2 {[%clk 0:00:04]}  Bd6 {[%clk 0:01:46]} 29. Qf1 {[%clk 0:00:04]}  Bxf4+ {[%clk 0:01:33]} 30. exf4 {[%clk 0:00:05]}  Qxf4+ {[%clk 0:01:34]} 31. Kh1 {[%clk 0:00:05]}  Qxd4 {[%clk 0:01:27]} 32. Re1 {[%clk 0:00:04]}  Re5 {[%clk 0:01:27]} 33. Rd1 {[%clk 0:00:01]}  Qe4+ {[%clk 0:01:24]} 34. Kh2 {[%clk 0:00:01]}  Qf4+ {[%clk 0:01:23]} 35. Kh1 {[%clk 0:00:01]}  Qf3+ {[%clk 0:01:23]} 36. Kh2 {[%clk 0:00:02]}  Re2 {[%clk 0:01:20]} 37. Kg1 {[%clk 0:00:00]}  Rxf2 {[%clk 0:01:19]} 0-1


[Site "https://www.chess.com"]